fUST/lending_fUST_20240426
["ID","MTS","AMOUNT","RATE_DAILY","PERIOD"]
[323593416,1714099874284,-500.0,0.00056712,120]
[323593417,1714099874294,-500.0,0.00056712,120]
[323593418,1714099874306,-500.0,0.00056712,120]
[323593419,1714099874328,-961.27,0.00056712,120]
[323593420,1714099874347,-593.8865858,0.00056712,120]
[323593421,1714099874365,-500.0,0.00056712,120]
[323593422,1714099874384,-500.0,0.00056712,120]
[323593423,1714099874401,-500.0,0.00056712,120]
[323593424,1714099874420,-500.0,0.00056712,120]
[323593425,1714099874439,-14214.71,0.00056712,120]
[323593426,1714099874457,-588.6,0.00056712,120]
[323593427,1714099874476,-500.0,0.00056712,120]
[323593428,1714099874494,-2011.18,0.00056712,120]
[323593429,1714099874514,-500.932924,0.00056712,120]
[323593430,1714099874534,-1690.05,0.00056712,120]
[323593431,1714099874546,-3418.88,0.00056712,21]
[323593432,1714099874563,-2570.54,0.00056712,120]
[323593433,1714099874580,-500.0,0.00056712,120]
[323593434,1714099874595,-500.0,0.00056712,120]
[323593435,1714099874614,-1241.59,0.00056712,120]
[323593436,1714099874628,-500.0,0.00056712,120]
[323593437,1714099874642,-541.93,0.00056712,120]
[323593438,1714099874656,-414.4468786,0.00056712,120]
[323593439,1714099874671,-500.0,0.00056712,120]
[323593440,1714099874686,-620.31,0.00056712,120]
[323593441,1714099874700,-4286.96,0.00056712,120]
[323593442,1714099874716,-500.0,0.00056712,120]
[323593443,1714099874730,-500.0,0.00056712,120]
[323593444,1714099874745,-632.57,0.00056712,120]
[323593445,1714099874759,-2408.71,0.00056712,120]
[323593446,1714099874774,-1365.71,0.00056712,120]
[323593447,1714099874788,-500.0,0.00056712,120]
[323593448,1714099874802,-500.0,0.00056712,120]
[323593449,1714099874816,-500.0,0.00056712,120]
[323593450,1714099874830,-631.83,0.00056712,120]
[323593451,1714099874845,-500.0,0.00056712,120]
[323593452,1714099874860,-500.0,0.00056712,120]
[323593453,1714099874875,-500.0,0.00056712,120]
[323593454,1714099874889,-500.0,0.00056712,120]
[323593455,1714099874903,-500.0,0.00056712,60]
[323593456,1714099874918,-597.63,0.00056712,120]
[323593457,1714099874932,-3900.41,0.00056712,120]
[323593458,1714099874947,-500.0,0.00056712,120]
[323593459,1714099874962,-500.0,0.00056712,120]
[323593460,1714099874977,-541.35,0.00056712,120]
[323593461,1714099874991,-500.0,0.00056712,120]
[323593462,1714099875005,-500.0,0.00056712,120]
[323593463,1714099875021,-1321.28,0.00056712,120]
[323593464,1714099875035,-500.0,0.00056712,120]
[323593465,1714099875049,-500.0,0.00056712,120]
[323593466,1714099875064,-500.0,0.00056712,120]
[323593467,1714099875077,-709.88,0.00056712,120]
[323593468,1714099875092,-500.0,0.00056712,120]
[323593469,1714099875106,-1376.96,0.00056712,120]
[323593470,1714099875121,-500.0,0.00056712,120]
[323593471,1714099875135,-1270.91,0.00056712,120]
[323593472,1714099875150,-500.0,0.00056712,120]
[323593473,1714099875165,-3138.71,0.00056712,120]
[323593474,1714099875179,-876.13,0.00056712,120]
[323593475,1714099875193,-1612.5,0.00056712,120]
[323593476,1714099875208,-1259.67,0.00056712,120]
[323593477,1714099875220,-500.0,0.00056712,120]
[323593478,1714099875353,-625.72,0.00056712,120]
[323593479,1714099875373,-500.0,0.00056712,120]
[323593480,1714099875395,-500.0,0.00056712,120]
[323593481,1714099875416,-648.27,0.00056712,120]
[323593482,1714099875432,-735.51,0.00056712,120]
[323593483,1714099875452,-500.0,0.00056712,120]
[323593484,1714099875472,-500.0,0.00056712,120]
[323593485,1714099875481,-500.0,0.00056712,2]
[323593486,1714099875491,-1608.79,0.00056712,120]
[323593487,1714099875500,-4378.86,0.00056712,120]
[323593488,1714099875511,-653.21,0.00056712,120]
[323593489,1714099875531,-500.0,0.00056712,120]
[323593490,1714099875540,-1458.2,0.0005684,120]
[323593491,1714099875550,-2607.7,0.00056986,120]
[323593492,1714099875559,-500.0,0.00056986,120]
[323593493,1714099875568,-515.48915803,0.00056986,120]
[323593494,1714099875577,-500.0,0.00056986,120]
[323593495,1714099875590,-362.80339937,0.00056986,120]
[323593496,1714099875600,-500.0,0.00056986,120]
[323593497,1714099875609,-500.0,0.00056986,120]
[323593498,1714099875618,-500.0,0.00056986,120]
[323593499,1714099875628,-500.0,0.00056986,120]
[323593500,1714099875637,-500.0,0.00056986,120]
[323593501,1714099875646,-500.0,0.00056986,120]
[323593502,1714099875656,-499.25055714,0.00056986,120]
[323593503,1714099875665,-500.0,0.00056986,120]
[323593504,1714099875674,-502.44399622,0.00056986,120]
[323593505,1714099875683,-500.0,0.00056986,120]
[323593506,1714099875692,-976.68,0.00056986,120]
[323593507,1714099875702,-500.0,0.00056986,120]
[323593508,1714099875711,-500.0,0.00056986,120]
[323593509,1714099875720,-500.0,0.00056986,120]
[323593510,1714099875730,-500.0,0.00056986,120]
[323593511,1714099875739,-500.0,0.00056986,120]
[323593512,1714099875749,-500.0,0.00056986,120]
[323593513,1714099875758,-246.58341791,0.00056986,120]
[323593514,1714099875768,-500.0,0.00056986,120]
[323593515,1714099875778,-512.96,0.00056986,120]
[323593516,1714099875788,-500.0,0.00056986,120]
[323593517,1714099875798,-500.0,0.00056986,120]
[323593518,1714099875807,-504.9532209,0.00056986,120]
[323593519,1714099875816,-500.0,0.00056986,120]
[323593520,1714099875826,-500.0,0.00056986,120]
[323593521,1714099875842,-1900.81,0.00056986,120]
[323593522,1714099875851,-500.0,0.00056986,120]
[323593523,1714099875860,-1543.65,0.00056986,120]
[323593524,1714099875869,-500.0,0.00056986,120]
[323593525,1714099875878,-500.0,0.00056986,120]
[323593526,1714099875887,-198.13512232,0.00056986,120]
[323593527,1714099875896,-500.0,0.00056986,120]
[323593528,1714099875906,-516.59,0.00056986,2]
[323593529,1714099875915,-500.0,0.00056986,120]
[323593530,1714099875924,-500.0,0.00056986,120]
[323593531,1714099875934,-641.72,0.00056986,120]
[323593532,1714099875943,-500.0,0.00056986,120]
[323593533,1714099875952,-500.0,0.00056986,120]
[323593534,1714099875961,-503.17051338,0.00056986,120]
[323593535,1714099875972,-1597.62,0.00056986,120]
[323593536,1714099875981,-595.18,0.00056986,120]
[323593537,1714099875991,-241.99178738,0.00056986,120]
[323593538,1714099876000,-500.0,0.00056986,120]
[323593539,1714099876010,-500.0,0.00056986,120]
[323593540,1714099876019,-500.0,0.00056986,120]
[323593541,1714099876028,-500.0,0.00056986,120]
[323593542,1714099876038,-500.0,0.00056986,120]
[323593543,1714099876048,-1727.11,0.00056986,120]
[323593544,1714099876058,-235.0,0.00056986,120]
[323593545,1714099876067,-502.51155661,0.00056986,120]
[323593546,1714099876076,-1085.28,0.00056986,120]
[323593547,1714099876085,-769.34,0.00056986,120]
[323593548,1714099876095,-500.0,0.00056986,120]
[323593549,1714099876105,-500.0,0.00056986,7]
[323593550,1714099876115,-500.0,0.00056986,120]
[323593551,1714099876124,-500.0,0.00056986,120]
[323593552,1714099876133,-967.69,0.00056986,120]
[323593553,1714099876142,-500.0,0.00056986,120]
[323593554,1714099876152,-500.0,0.00056986,120]
[323593555,1714099876161,-500.0,0.00056986,120]
[323593556,1714099876170,-500.0,0.00056986,120]
[323593557,1714099876179,-826.47,0.00056986,120]
[323593558,1714099876188,-500.0,0.00056986,120]
[323593559,1714099876198,-500.0,0.00056986,120]
[323593560,1714099876207,-500.0,0.00056986,120]
[323593561,1714099876216,-500.0,0.00056986,120]
[323593562,1714099876226,-500.0,0.00056986,120]
[323593563,1714099876235,-500.0,0.00056986,120]
[323593564,1714099876244,-500.0,0.00056986,120]
[323593565,1714099876253,-1913.27,0.00056986,120]
[323593566,1714099876262,-1459.11,0.00056986,120]
[323593567,1714099876271,-1614.85,0.00056986,120]
[323593568,1714099876281,-1759.91,0.00056986,120]
[323593569,1714099876290,-500.0,0.00056986,120]
[323593570,1714099876299,-1364.53,0.00056986,120]
[323593571,1714099876308,-500.0,0.00056986,120]
[323593572,1714099876317,-500.0,0.00056986,120]
[323593573,1714099876326,-500.0,0.00056986,120]
[323593574,1714099876335,-500.0,0.00056986,120]
[323593575,1714099876345,-500.0,0.00056986,120]
[323593576,1714099876355,-500.0,0.00056986,120]
[323593577,1714099876364,-500.0,0.00056986,120]
[323593578,1714099876373,-882.66,0.00056986,120]
[323593579,1714099876383,-8110.34,0.00056986,120]
[323593580,1714099876393,-2998.7,0.00056986,120]
[323593581,1714099876402,-1243.4,0.00056986,120]
[323593582,1714099876411,-500.0,0.00056986,120]
[323593583,1714099876423,-568.63,0.00056986,120]
[323593584,1714099876435,-902.12,0.00056986,120]
[323593585,1714099876446,-500.0,0.00056986,120]
[323593586,1714099876455,-500.0,0.00056986,120]
[323593587,1714099876464,-1645.56,0.00056986,120]
[323593588,1714099876475,-10108.47,0.00056986,120]
[323593589,1714099876489,-503.71915536,0.00056986,120]
[323593590,1714099876498,-500.0,0.00056986,120]
[323593591,1714099876521,-500.0,0.00056986,120]
[323593592,1714099876533,-500.0,0.00056986,120]
[323593593,1714099876542,-867.82,0.00056986,120]
[323593594,1714099876568,-1106.3,0.00056986,120]
[323593595,1714099876577,-500.0,0.00056986,120]
[323593596,1714099876609,-500.0,0.00056986,120]
[323593597,1714099876629,-500.0,0.00056986,120]
[323593598,1714099876652,-961.27,0.00056986,120]
[323593599,1714099876667,-500.0,0.00056986,120]
[323593600,1714099876677,-501.2848267,0.00056986,120]
[323593601,1714099876695,-500.0,0.00056986,120]
[323593602,1714099876704,-500.0,0.00056986,120]
[323593603,1714099876713,-14214.71,0.00056986,120]
[323593604,1714099876724,-588.6,0.00056986,120]
[323593605,1714099876734,-500.0,0.00056986,120]
[323593606,1714099876743,-2011.18,0.00056986,120]
[323593607,1714099876753,-1690.05,0.00056986,120]
[323593608,1714099876769,-3418.88,0.00056986,21]
[323593609,1714099876796,-2570.54,0.00056986,120]
[323593610,1714099876812,-500.0,0.00056986,120]
[323593611,1714099876826,-500.0,0.00056986,120]
[323593612,1714099876841,-1241.59,0.00056986,120]
[323593613,1714099876865,-500.0,0.00056986,120]
[323593614,1714099876875,-541.93,0.00056986,120]
[323593615,1714099876884,-501.66618205,0.00056986,120]
[323593616,1714099876904,-620.31,0.00056986,120]
[323593617,1714099876926,-4286.96,0.00056986,120]
[323593618,1714099876948,-160.1034091,0.00056986,120]
[323593619,1714099876966,-500.0,0.00056986,120]
[323593620,1714099876975,-632.57,0.00056986,120]
[323593621,1714099876985,-2408.71,0.00056986,120]
[323593622,1714099876994,-1365.71,0.00056986,120]
[323593623,1714099877004,-503.76274955,0.00056986,120]
[323593624,1714099877013,-500.0,0.00056986,120]
[323593625,1714099877022,-500.0,0.00056986,120]
[323593626,1714099877032,-631.83,0.00056986,120]
[323593627,1714099877041,-500.0,0.00056986,120]
[323593628,1714099877050,-500.0,0.00056986,120]
[323593629,1714099877059,-500.0,0.00056986,120]
[323593630,1714099877069,-500.0,0.00056986,120]
[323593631,1714099877079,-500.0,0.00056986,60]
[323593632,1714099877088,-597.63,0.00056986,120]
[323593633,1714099877097,-3900.41,0.00056986,120]
[323593634,1714099877107,-500.0,0.00056986,120]
[323593635,1714099877116,-500.0,0.00056986,120]
[323593636,1714099877126,-541.35,0.00056986,120]
[323593637,1714099877136,-547.17618542,0.00056986,120]
[323593638,1714099877145,-500.0,0.00056986,120]
[323593639,1714099877155,-1321.28,0.00056986,120]
[323593640,1714099877164,-500.0,0.00056986,120]
[323593641,1714099877174,-500.0,0.00056986,120]
[323593642,1714099877183,-500.0,0.00056986,120]
[323593643,1714099877193,-709.88,0.00056986,120]
[323593644,1714099877202,-500.0,0.00056986,120]
[323593645,1714099877212,-1376.96,0.00056986,120]
[323593646,1714099877221,-639.46435392,0.00056986,120]
[323593647,1714099877230,-1270.91,0.00056986,120]
[323593648,1714099877240,-500.0,0.00056986,120]
[323593649,1714099877250,-3138.71,0.00056986,120]
[323593650,1714099877259,-876.13,0.00056986,120]
[323593651,1714099877269,-1612.5,0.00056986,120]
[323593652,1714099877278,-1259.67,0.00056986,120]
[323593653,1714099877288,-291.21135732,0.00056986,120]
[323593654,1714099877297,-625.72,0.00056986,120]
[323593655,1714099877307,-500.0,0.00056986,120]
[323593656,1714099877316,-500.0,0.00056986,120]
[323593657,1714099877326,-648.27,0.00056986,120]
[323593658,1714099877335,-735.51,0.00056986,120]
[323593659,1714099877346,-500.0,0.00056986,120]
[323593660,1714099877443,-500.0,0.00056986,120]
[323593661,1714099877454,-500.0,0.00056986,2]
[323593662,1714099877464,-1608.79,0.00056986,120]
[323593663,1714099877474,-4378.86,0.00056986,120]
[323593664,1714099877484,-653.21,0.00056986,120]
[323593665,1714099877493,-500.0,0.00056986,120]
[323593666,1714099877503,-1764.44341846,0.00057,120]
[323593667,1714099877512,-2607.7,0.0005726,120]
[323593668,1714099877522,-500.0,0.0005726,120]
[323593669,1714099877531,-500.0,0.0005726,120]
[323593670,1714099877540,-500.0,0.0005726,120]
[323593671,1714099877549,-247.69519254,0.0005726,120]
[323593672,1714099877558,-500.0,0.0005726,120]
[323593673,1714099877567,-500.0,0.0005726,120]
[323593674,1714099877577,-500.0,0.0005726,120]
[323593675,1714099877586,-568.08561647,0.0005726,120]
[323593676,1714099877600,-500.0,0.0005726,120]
[323593677,1714099877610,-976.68,0.0005726,120]
[323593678,1714099877619,-500.0,0.0005726,120]
[323593679,1714099877629,-500.0,0.0005726,120]
[323593680,1714099877638,-500.0,0.0005726,120]
[323593681,1714099877648,-500.0,0.0005726,120]
[323593682,1714099877657,-500.0,0.0005726,120]
[323593683,1714099877667,-500.0,0.0005726,120]
[323593684,1714099877676,-500.0,0.0005726,120]
[323593685,1714099877686,-512.96,0.0005726,120]
[323593686,1714099877695,-500.0,0.0005726,120]
[323593687,1714099877705,-500.0,0.0005726,120]
[323593688,1714099877715,-285.35137148,0.0005726,120]
[323593689,1714099877724,-500.0,0.0005726,120]
[323593690,1714099877734,-1900.81,0.0005726,120]
[323593691,1714099877743,-500.0,0.0005726,120]
[323593692,1714099877753,-1543.65,0.0005726,120]
[323593693,1714099877762,-211.42001922,0.0005726,120]
[323593694,1714099877772,-500.0,0.0005726,120]
[323593695,1714099877782,-500.0,0.0005726,120]
[323593696,1714099877792,-516.59,0.0005726,2]
[323593697,1714099877802,-500.0,0.0005726,120]
[323593698,1714099877812,-502.40095464,0.0005726,120]
[323593699,1714099877821,-641.72,0.0005726,120]
[323593700,1714099877831,-500.0,0.0005726,120]
[323593701,1714099877842,-500.0,0.0005726,120]
[323593702,1714099877852,-1597.62,0.0005726,120]
[323593703,1714099877862,-595.18,0.0005726,120]
[323593704,1714099877871,-500.0,0.0005726,120]
[323593705,1714099877880,-500.0,0.0005726,120]
[323593706,1714099877890,-500.0,0.0005726,120]
[323593707,1714099877899,-500.0,0.0005726,120]
[323593708,1714099877909,-502.68653395,0.0005726,120]
[323593709,1714099877918,-1727.11,0.0005726,120]
[323593710,1714099877927,-1085.28,0.0005726,120]
[323593711,1714099877936,-769.34,0.0005726,120]
[323593712,1714099877945,-500.0,0.0005726,120]
[323593713,1714099877954,-500.0,0.0005726,7]
[323593714,1714099877964,-500.0,0.0005726,120]
[323593715,1714099877974,-362.34151355,0.0005726,120]
[323593716,1714099877984,-967.69,0.0005726,120]
[323593717,1714099877993,-500.0,0.0005726,120]
[323593718,1714099878003,-500.0,0.0005726,120]
[323593719,1714099878012,-500.0,0.0005726,120]
[323593720,1714099878021,-500.0,0.0005726,120]
[323593721,1714099878031,-826.47,0.0005726,120]
[323593722,1714099878040,-500.0,0.0005726,120]
[323593723,1714099878049,-501.38329529,0.0005726,120]
[323593724,1714099878058,-500.0,0.0005726,120]
[323593725,1714099878068,-502.81739065,0.0005726,120]
[323593726,1714099878078,-500.0,0.0005726,120]
[323593727,1714099878087,-500.0,0.0005726,120]
[323593728,1714099878099,-1913.27,0.0005726,120]
[323593729,1714099878108,-1459.11,0.0005726,120]
[323593730,1714099878117,-1614.85,0.0005726,120]
[323593731,1714099878126,-1759.91,0.0005726,120]
[323593732,1714099878136,-500.0,0.0005726,120]
[323593733,1714099878146,-1364.53,0.0005726,120]
[323593734,1714099878155,-500.0,0.0005726,120]
[323593735,1714099878165,-500.0,0.0005726,120]
[323593736,1714099878175,-500.0,0.0005726,120]
[323593737,1714099878184,-362.4428209,0.0005726,120]
[323593738,1714099878194,-500.0,0.0005726,120]
[323593739,1714099878203,-500.0,0.0005726,120]
[323593740,1714099878212,-500.0,0.0005726,120]
[323593741,1714099878221,-882.66,0.0005726,120]
[323593742,1714099878230,-8110.34,0.0005726,120]
[323593743,1714099878240,-2998.7,0.0005726,120]
[323593744,1714099878250,-500.0,0.0005726,120]
[323593745,1714099878259,-1243.4,0.0005726,120]
[323593746,1714099878268,-568.63,0.0005726,120]
[323593747,1714099878277,-902.12,0.0005726,120]
[323593748,1714099878287,-500.0,0.0005726,120]
[323593749,1714099878296,-500.0,0.0005726,120]
[323593750,1714099878306,-1645.56,0.0005726,120]
[323593751,1714099878315,-10108.47,0.0005726,120]
[323593752,1714099878325,-500.0,0.0005726,120]
[323593753,1714099878335,-500.0,0.0005726,120]
[323593754,1714099878346,-500.0,0.0005726,120]
[323593755,1714099878355,-867.82,0.0005726,120]
[323593756,1714099878365,-1106.3,0.0005726,120]
[323593757,1714099878374,-500.0,0.0005726,120]
[323593758,1714099878383,-500.0,0.0005726,120]
[323593759,1714099878393,-500.0,0.0005726,120]
[323593760,1714099878402,-961.27,0.0005726,120]
[323593761,1714099878411,-500.0,0.0005726,120]
[323593762,1714099878422,-500.0,0.0005726,120]
[323593763,1714099878434,-500.0,0.0005726,120]
[323593764,1714099878443,-14214.71,0.0005726,120]
[323593765,1714099878452,-588.6,0.0005726,120]
[323593766,1714099878462,-500.0,0.0005726,120]
[323593767,1714099878471,-2011.18,0.0005726,120]
[323593768,1714099878481,-1690.05,0.0005726,120]
[323593769,1714099878490,-2570.54,0.0005726,120]
[323593770,1714099878498,-3418.88,0.0005726,21]
[323593771,1714099878509,-500.0,0.0005726,120]
[323593772,1714099878518,-504.90135624,0.0005726,120]
[323593773,1714099878528,-1241.59,0.0005726,120]
[323593774,1714099878537,-500.0,0.0005726,120]
[323593775,1714099878546,-541.93,0.0005726,120]
[323593776,1714099878556,-620.31,0.0005726,120]
[323593777,1714099878565,-4286.96,0.0005726,120]
[323593778,1714099878575,-500.0,0.0005726,120]
[323593779,1714099878585,-632.57,0.0005726,120]
[323593780,1714099878595,-2408.71,0.0005726,120]
[323593781,1714099878604,-1365.71,0.0005726,120]
[323593782,1714099878613,-500.0,0.0005726,120]
[323593783,1714099878622,-500.0,0.0005726,120]
[323593784,1714099878631,-631.83,0.0005726,120]
[323593785,1714099878641,-500.0,0.0005726,120]
[323593786,1714099878650,-500.0,0.0005726,120]
[323593787,1714099878659,-500.0,0.0005726,120]
[323593788,1714099878669,-500.0,0.0005726,120]
[323593789,1714099878679,-500.0,0.0005726,60]
[323593790,1714099878688,-597.63,0.0005726,120]
[323593791,1714099878697,-500.0,0.0005726,120]
[323593792,1714099878706,-3900.41,0.0005726,120]
[323593793,1714099878716,-500.0,0.0005726,120]
[323593794,1714099878726,-541.35,0.0005726,120]
[323593795,1714099878736,-500.0,0.0005726,120]
[323593796,1714099878746,-1321.28,0.0005726,120]
[323593797,1714099878755,-500.0,0.0005726,120]
[323593798,1714099878765,-500.0,0.0005726,120]
[323593799,1714099878775,-500.0,0.0005726,120]
[323593800,1714099878784,-709.88,0.0005726,120]
[323593801,1714099878794,-500.0,0.0005726,120]
[323593802,1714099878803,-1376.96,0.0005726,120]
[323593803,1714099878813,-1270.91,0.0005726,120]
[323593804,1714099878823,-603.60666115,0.0005726,120]
[323593805,1714099878833,-3138.71,0.0005726,120]
[323593806,1714099878844,-876.13,0.0005726,120]
[323593807,1714099878854,-1612.5,0.0005726,120]
[323593808,1714099878863,-1259.67,0.0005726,120]
[323593809,1714099878873,-625.72,0.0005726,120]
[323593810,1714099878882,-500.0,0.0005726,120]
[323593811,1714099878892,-500.0,0.0005726,120]
[323593812,1714099878901,-648.27,0.0005726,120]
[323593813,1714099878911,-500.0,0.0005726,120]
[323593814,1714099878921,-500.0,0.0005726,120]
[323593815,1714099878931,-500.0,0.0005726,2]
[323593816,1714099878941,-1608.79,0.0005726,120]
[323593817,1714099878951,-735.51,0.0005726,120]
[323593818,1714099878961,-4378.86,0.0005726,120]
[323593819,1714099878971,-653.21,0.0005726,120]
[323593820,1714099878980,-2607.7,0.00057534,120]
[323593821,1714099878990,-500.0,0.00057534,120]
[323593822,1714099878999,-500.0,0.00057534,120]
[323593823,1714099879009,-500.0,0.00057534,120]
[323593824,1714099879018,-500.0,0.00057534,120]
[323593825,1714099879027,-500.0,0.00057534,120]
[323593826,1714099879037,-500.0,0.00057534,120]
[323593827,1714099879046,-976.68,0.00057534,120]
[323593828,1714099879139,-500.0,0.00057534,120]
[323593829,1714099879148,-500.0,0.00057534,120]
[323593830,1714099879158,-500.0,0.00057534,120]
[323593831,1714099879167,-500.0,0.00057534,120]
[323593832,1714099879176,-500.0,0.00057534,120]
[323593833,1714099879185,-500.0,0.00057534,120]
[323593834,1714099879194,-500.0,0.00057534,120]
[323593835,1714099879203,-512.96,0.00057534,120]
[323593836,1714099879212,-500.0,0.00057534,120]
[323593837,1714099879221,-500.0,0.00057534,120]
[323593838,1714099879230,-500.0,0.00057534,120]
[323593839,1714099879239,-1900.81,0.00057534,120]
[323593840,1714099879248,-500.0,0.00057534,120]
[323593841,1714099879257,-1543.65,0.00057534,120]
[323593842,1714099879267,-500.0,0.00057534,120]
[323593843,1714099879276,-500.0,0.00057534,120]
[323593844,1714099879286,-516.59,0.00057534,2]
[323593845,1714099879295,-500.0,0.00057534,120]
[323593846,1714099879304,-500.0,0.00057534,120]
[323593847,1714099879313,-641.72,0.00057534,120]
[323593848,1714099879323,-500.0,0.00057534,120]
[323593849,1714099879332,-500.0,0.00057534,120]
[323593850,1714099879342,-1597.62,0.00057534,120]
[323593851,1714099879352,-595.18,0.00057534,120]
[323593852,1714099879361,-500.0,0.00057534,120]
[323593853,1714099879370,-500.0,0.00057534,120]
[323593854,1714099879379,-500.0,0.00057534,120]
[323593855,1714099879389,-500.0,0.00057534,120]
[323593856,1714099879399,-1727.11,0.00057534,120]
[323593857,1714099879408,-1085.28,0.00057534,120]
[323593858,1714099879419,-769.34,0.00057534,120]
[323593859,1714099879428,-500.0,0.00057534,120]
[323593860,1714099879439,-500.0,0.00057534,7]
[323593861,1714099879450,-500.0,0.00057534,120]
[323593862,1714099879459,-967.69,0.00057534,120]
[323593863,1714099879468,-500.0,0.00057534,120]
[323593864,1714099879477,-152.85490103,0.00057534,120]
[323593865,1714099879487,-500.0,0.00057534,120]
[323593866,1714099879495,-500.0,0.00057534,120]
[323593867,1714099879505,-826.47,0.00057534,120]
[323593868,1714099879516,-506.95070065,0.00057534,120]
[323593869,1714099879527,-500.0,0.00057534,120]
[323593870,1714099879537,-500.0,0.00057534,120]
[323593871,1714099879546,-500.0,0.00057534,120]
[323593872,1714099879555,-1913.27,0.00057534,120]
[323593873,1714099879565,-1459.11,0.00057534,120]
[323593874,1714099879574,-1614.85,0.00057534,120]
[323593875,1714099879584,-1759.91,0.00057534,120]
[323593876,1714099879594,-501.42511246,0.00057534,120]
[323593877,1714099879604,-1364.53,0.00057534,120]
[323593878,1714099879613,-500.0,0.00057534,120]
[323593879,1714099879622,-321.19328247,0.00057534,120]
[323593880,1714099879632,-500.0,0.00057534,120]
[323593881,1714099879642,-500.0,0.00057534,120]
[323593882,1714099879651,-500.0,0.00057534,120]
[323593883,1714099879661,-500.0,0.00057534,120]
[323593884,1714099879670,-882.66,0.00057534,120]
[323593885,1714099879679,-8110.34,0.00057534,120]
[323593886,1714099879689,-2998.7,0.00057534,120]
[323593887,1714099879699,-500.0,0.00057534,120]
[323593888,1714099879708,-1243.4,0.00057534,120]
[323593889,1714099879717,-568.63,0.00057534,120]
[323593890,1714099879727,-902.12,0.00057534,120]
[323593891,1714099879737,-500.0,0.00057534,120]
[323593892,1714099879747,-500.0,0.00057534,120]
[323593893,1714099879757,-1645.56,0.00057534,120]
[323593894,1714099879766,-10108.47,0.00057534,120]
[323593895,1714099879776,-500.0,0.00057534,120]
[323593896,1714099879786,-500.0,0.00057534,120]
[323593897,1714099879796,-500.0,0.00057534,120]
[323593898,1714099879805,-867.82,0.00057534,120]
[323593899,1714099879815,-1106.3,0.00057534,120]
[323593900,1714099879825,-505.40905168,0.00057534,120]
[323593901,1714099879835,-500.0,0.00057534,120]
[323593902,1714099879845,-500.0,0.00057534,120]
[323593903,1714099879855,-961.27,0.00057534,120]
[323593904,1714099879866,-370.08356786,0.00057534,120]
[323593905,1714099879875,-500.0,0.00057534,120]
[323593906,1714099879884,-14214.71,0.00057534,120]
[323593907,1714099879894,-588.6,0.00057534,120]
[323593908,1714099879904,-500.0,0.00057534,120]
[323593909,1714099879914,-2011.18,0.00057534,120]
[323593910,1714099879924,-1690.05,0.00057534,120]
[323593911,1714099879934,-2570.54,0.00057534,120]
[323593912,1714099879943,-3418.88,0.00057534,21]
[323593913,1714099879953,-500.0,0.00057534,120]
[323593914,1714099879963,-1241.59,0.00057534,120]
[323593915,1714099879973,-500.0,0.00057534,120]